bitfinex/quotes_SOLUSD_20260115
["timestamp","ask_amount","ask_price","bid_price","bid_amount"]
[1768495978967,7.18139302,143.57,143.55,0.2]
[1768495979500,0.21611711,143.57,143.55,0.2]
[1768495979794,7.18144439,143.57,143.55,0.2]
[1768495980169,10.53455411,143.57,143.55,0.2]
[1768495980582,3.35310972,143.56,143.53,0.67161733]
[1768495980781,6.96621386,143.55,143.53,0.2]
[1768495980966,6.90621387,143.55,143.53,0.2]
[1768495981585,0.21491671,143.53,143.51,0.2]
[1768495981803,3.56802643,143.54,143.51,0.2]
[1768495981986,6.96592576,143.56,143.52,0.47161733]
[1768495982184,6.90592577,143.56,143.52,7.43921559]
[1768495982693,6.90592577,143.56,143.52,0.47161733]
[1768495983071,10.25903549,143.56,143.52,0.47161733]
[1768495984097,10.47317473,143.56,143.52,0.47161733]
[1768495984806,0.2137572,143.54,143.51,0.2]
[1768495985111,0.15375721,143.54,143.51,0.2]
[1768495985288,10.31953039,143.55,143.51,0.67161733]
[1768495986677,6.96573145,143.56,143.52,0.47161733]
[1768495986886,16.05310972,143.59,143.54,0.47161733]
[1768495987202,12.7,143.59,143.55,0.47161733]
[1768495987399,16.05310972,143.59,143.55,0.47161733]
[1768495987585,12.7,143.59,143.55,0.47161733]
[1768495987785,12.7,143.59,143.56,0.47161733]
[1768495987990,3.50574691,143.61,143.56,0.47161733]
[1768495988182,16.20574691,143.61,143.56,0.47161733]
[1768495988579,6.9637883,143.6,143.56,0.47161733]
[1768495989607,16.20574691,143.61,143.57,0.47161733]
[1768495989608,19.66351515,143.61,143.57,0.47161733]
[1768495989804,6.96233377,143.63,143.57,0.47161733]
[1768495990014,6.96233377,143.63,143.59,0.47161733]
[1768495990802,0.15155533,143.62,143.58,0.47161733]
[1768495990976,3.35310972,143.6,143.55,6.96611499]
[1768495991182,3.35310972,143.6,143.56,0.47161733]
[1768495991997,10.31705552,143.6,143.56,0.47161733]
[1768495992504,0.15085464,143.58,143.54,0.47161733]
[1768495992802,3.50396436,143.58,143.54,0.47161733]
[1768495994711,10.31828382,143.58,143.54,0.47161733]
[1768495997810,3.50228186,143.57,143.53,0.47161733]
[1768495998005,3.50228186,143.56,143.52,0.47161733]
[1768495998809,6.96621386,143.55,143.52,0.47161733]
[1768495999010,6.90621387,143.55,143.52,0.47161733]
[1768495999311,10.46816584,143.56,143.52,7.43919997]
[1768495999715,10.3189937,143.56,143.53,0.47161733]
[1768496000710,6.96588398,143.56,143.53,0.47161733]
[1768496001022,16.05310972,143.58,143.54,0.50350228]
[1768496001191,6.96497359,143.58,143.54,0.50350228]
[1768496001386,19.6644212,143.59,143.55,0.50350228]
[1768496003412,19.6644212,143.59,143.56,0.50350228]
[1768496003601,6.9644212,143.59,143.56,0.50350228]
[1768496006292,10.46332651,143.59,143.55,0.47000067]
[1768496006505,10.31753092,143.59,143.55,0.47000067]
[1768496006914,10.31753092,143.59,143.56,0.47000067]
[1768496008520,3.35310972,143.58,143.54,7.43647821]
[1768496008699,3.35310972,143.58,143.55,0.47000067]
[1768496009020,7.10964765,143.59,143.55,7.43619633]
[1768496009211,6.96396888,143.6,143.57,0.47000067]
[1768496009517,19.80845703,143.61,143.57,0.44000067]
[1768496009695,6.96301813,143.62,143.57,3.35310972]
[1768496010022,10.31612785,143.62,143.56,10.3187508]
[1768496010217,10.31612785,143.62,143.56,27.73307233]
[1768496010516,10.31612785,143.62,143.56,24.37996261]
[1768496010817,0.17467031,143.6,143.55,15.56602706]
[1768496011020,3.52778003,143.6,143.55,15.56602706]
[1768496011405,3.35310972,143.6,143.56,0.47000067]
[1768496011601,3.35310972,143.59,143.56,0.47000067]
[1768496012397,10.31779337,143.59,143.56,0.47000067]
[1768496013018,10.49192025,143.59,143.55,0.47000067]
[1768496013319,10.49192025,143.59,143.53,10.3201445]
[1768496013320,3.52696955,143.58,143.53,7.43703545]
[1768496013717,24.54922667,143.59,143.54,7.43667842]
[1768496013916,27.90233639,143.59,143.55,0.47000067]
[1768496014109,10.4916532,143.59,143.55,0.47000067]
[1768496014926,6.96468365,143.59,143.56,0.47000067]
[1768496016827,6.96386807,143.6,143.57,0.47000067]
[1768496017824,10.31641311,143.61,143.57,0.47000067]
[1768496018414,3.35310972,143.6,143.57,0.47000067]
[1768496019115,24.54413178,143.61,143.53,0.47000067]
[1768496019116,3.52567964,143.58,143.53,0.47000067]
[1768496019320,3.52567964,143.58,143.54,0.47000067]
[1768496019517,3.35310972,143.58,143.54,0.47000067]
[1768496019820,3.52543047,143.59,143.54,0.47000067]
[1768496020024,6.96475832,143.58,143.54,0.47000067]
[1768496020196,17.58098772,143.61,143.55,0.47000067]
[1768496020401,20.93409744,143.61,143.55,0.47000067]
[1768496021328,6.96406835,143.6,143.55,0.47000067]
[1768496021832,24.3735391,143.6,143.55,0.47000067]
[1768496022035,3.35310972,143.59,143.55,0.47000067]
[1768496022530,3.52470003,143.59,143.55,0.47000067]
[1768496022739,3.35310972,143.57,143.53,0.47000067]
[1768496023327,3.52470003,143.58,143.53,0.47000067]
[1768496023731,16.05310972,143.59,143.54,0.47000067]
[1768496024126,19.66445761,143.59,143.55,7.43606578]
[1768496025335,19.66445761,143.59,143.56,0.47000067]
[1768496026528,6.96445761,143.59,143.56,0.47000067]
[1768496028212,6.96445761,143.59,143.55,6.96599963]
[1768496028213,6.96445761,143.59,143.55,0.47000067]
[1768496028443,10.31756733,143.59,143.55,0.47000067]
[1768496029108,6.96445761,143.59,143.55,0.47000067]
[1768496029635,12.86998124,143.61,143.56,0.47000067]
[1768496029814,20.92960402,143.63,143.57,0.47000067]
[1768496030129,86.13700529,143.72,143.59,5.34408856]
[1768496030130,0.47193364,143.66,143.59,5.34408856]
[1768496030313,7.43302047,143.66,143.62,6.96281854]
[1768496030718,7.43302047,143.66,143.61,6.96309835]
[1768496030931,0.48142284,143.65,143.6,6.96349925]
[1768496031119,0.48142284,143.64,143.59,19.66399262]
[1768496031321,0.48142284,143.63,143.59,19.66399262]
[1768496032029,0.48142284,143.63,143.59,6.96399262]
[1768496032233,0.48142284,143.63,143.59,10.31710234]
[1768496033132,3.35310972,143.68,143.62,3.35310972]
[1768496033338,0.48142284,143.67,143.63,3.35310972]
[1768496034214,7.44200846,143.67,143.63,3.35310972]
[1768496034422,7.44200846,143.67,143.62,10.31556549]
[1768496035306,7.44200846,143.67,143.63,5.23167113]
[1768496035307,0.48142284,143.66,143.63,5.23167113]
[1768496035505,0.48142284,143.66,143.62,12.1941269]
[1768496036441,7.44231776,143.66,143.62,12.1941269]
[1768496036614,7.44231776,143.66,143.6,30.10879111]
[1768496036615,0.48142284,143.65,143.58,17.41141088]
[1768496036819,0.48142284,143.65,143.61,5.23167113]
[1768496037126,0.48142284,143.64,143.6,5.23167113]
[1768496037523,0.48142284,143.64,143.6,12.19540493]
[1768496037849,104.0,143.7,143.6,12.19540493]
[1768496037850,0.48142284,143.71,143.63,5.23167113]
[1768496038136,0.48142284,143.7,143.66,5.23167113]
[1768496038743,0.48142284,143.7,143.67,5.23167113]
[1768496039242,7.44046063,143.7,143.67,5.23167113]
[1768496040447,7.44046063,143.7,143.66,5.23167113]
[1768496041728,7.44046063,143.7,143.66,12.19252983]
[1768496042847,7.44046063,143.7,143.66,5.23167113]
[1768496043035,0.48142284,143.69,143.66,5.23167113]
[1768496043340,0.48142284,143.68,143.64,5.23167113]
[1768496043521,0.48142284,143.66,143.62,5.23167113]
[1768496043722,0.48142284,143.65,143.61,12.19468556]
[1768496044137,0.48142284,143.64,143.6,6.96375081]
[1768496044522,0.48142284,143.64,143.6,12.19542194]
[1768496044748,0.48142284,143.64,143.6,6.96375081]
[1768496046042,0.48142284,143.62,143.57,5.23167113]
[1768496046249,0.48142284,143.62,143.58,6.96454471]
[1768496046923,0.48142284,143.62,143.59,6.96422861]
[1768496047342,0.48142284,143.63,143.59,12.19589974]
[1768496047731,0.48142284,143.63,143.59,5.23167113]
[1768496048426,17.4045909,143.65,143.6,5.23167113]
[1768496048427,0.48142284,143.65,143.6,5.23167113]
[1768496048640,0.48142284,143.65,143.57,17.41245988]
[1768496048641,0.48142284,143.64,143.59,5.23167113]
[1768496049353,0.48142284,143.63,143.59,5.23167113]
[1768496049727,0.42142285,143.63,143.6,6.9637883]
[1768496049928,0.36142286,143.63,143.6,6.9637883]
[1768496050154,0.30142287,143.63,143.6,6.9637883]
[1768496050469,6.9615693,143.65,143.6,12.3923937]
[1768496050662,6.96058164,143.67,143.61,0.19693427]
[1768496050954,6.96058164,143.67,143.62,5.23167113]
[1768496051649,12.19225277,143.67,143.62,5.23167113]
[1768496051855,12.19225277,143.67,143.62,12.1942493]
[1768496052153,0.48142284,143.66,143.62,12.1942493]
[1768496052971,0.48142284,143.65,143.59,0.19913115]
[1768496053143,0.42947948,143.64,143.59,5.43080228]
[1768496053455,0.42947948,143.64,143.6,6.9635086]
[1768496055648,0.42947948,143.64,143.6,12.19517973]
[1768496055956,0.48142284,143.66,143.62,5.23167113]
[1768496057650,0.48142284,143.66,143.62,12.19413062]
[1768496060065,6.96006527,143.68,143.64,0.25886519]
[1768496060252,0.48142284,143.69,143.64,5.49053632]
[1768496060450,0.48142284,143.69,143.65,5.23167113]
[1768496060858,0.49795669,143.68,143.65,5.23167113]
[1768496061767,0.49795669,143.71,143.66,5.49378634]
[1768496061963,0.49795669,143.7,143.67,5.23167113]
[1768496062345,7.45699585,143.7,143.67,5.23167113]
[1768496062748,20.15639984,143.72,143.68,5.23167113]
[1768496063048,0.49795669,143.7,143.66,5.23167113]
[1768496063248,0.49795669,143.7,143.65,6.96114152]
[1768496063451,0.49795669,143.7,143.65,12.19281265]
[1768496064153,0.49795669,143.69,143.65,5.23167113]
[1768496064367,0.49795669,143.68,143.64,12.19329933]
[1768496064865,0.49795669,143.68,143.65,6.96121774]
[1768496065658,0.49795669,143.68,143.65,12.19288887]
[1768496065861,0.49795669,143.68,143.65,6.96121774]
[1768496066061,0.49795669,143.68,143.65,12.19288887]
[1768496071456,0.49795669,143.68,143.65,6.96121774]
[1768496073766,0.4379567,143.68,143.65,6.96121774]
[1768496076485,0.4379567,143.68,143.64,12.46835807]
[1768496076986,0.37795671,143.68,143.64,12.46835807]
[1768496077860,0.31795672,143.68,143.64,12.46835807]
[1768496078084,0.1,143.73,143.72,3.60898854]
[1768496078270,7.05748973,143.73,143.7,5.23167113]
[1768496079391,7.05748973,143.73,143.69,12.19100343]
[1768496079588,0.1,143.73,143.7,5.23167113]
[1768496079981,0.47397078,143.72,143.7,5.23167113]
[1768496081888,0.47397078,143.72,143.7,12.19054922]
[1768496082491,0.47397078,143.72,143.7,5.23167113]
[1768496083271,0.47397078,143.72,143.69,12.19087975]
[1768496085584,0.47397078,143.72,143.7,5.23167113]
[1768496087103,7.43202023,143.72,143.69,5.23167113]
[1768496087798,0.47397078,143.72,143.69,5.23167113]
[1768496088387,0.47397078,143.72,143.69,6.95942249]
[1768496088588,0.47397078,143.72,143.69,12.19109362]
[1768496090679,0.47397078,143.72,143.69,6.95942249]
[1768496090878,0.47397078,143.72,143.69,12.19109362]
[1768496092705,0.5179911,143.69,143.65,5.23167113]
[1768496092900,0.5179911,143.67,143.63,5.23167113]
[1768496093088,0.5179911,143.66,143.62,12.19448967]
[1768496093588,0.5179911,143.66,143.62,6.96281854]
[1768496094388,0.5179911,143.66,143.59,12.7]
[1768496094389,0.5179911,143.64,143.59,17.41051706]
[1768496094611,0.39799106,143.64,143.59,5.30774235]
[1768496095010,0.39799106,143.64,143.59,0.07607122]
[1768496095307,6.9620512,143.64,143.59,5.23167113]
[1768496095486,5.23167113,143.65,143.59,5.23167113]
[1768496095690,12.19321053,143.65,143.59,5.23167113]
[1768496095891,6.96087985,143.66,143.59,5.23167113]
[1768496096206,5.23167113,143.65,143.59,5.23167113]
[1768496096397,5.23167113,143.65,143.59,5.36950414]
[1768496096599,0.5179911,143.64,143.6,6.9637883]
[1768496098412,0.5179911,143.63,143.6,6.9637883]
[1768496099223,12.7,143.63,143.59,6.96414438]
[1768496099388,0.5179911,143.62,143.59,6.96414438]
[1768496100561,12.7,143.64,143.6,3.86465488]
[1768496100810,12.7,143.65,143.61,6.96330339]
[1768496101492,10.3108324,143.66,143.61,6.96330339]
[1768496101826,16.04973472,143.65,143.58,0.51492016]
[1768496102116,16.04973472,143.65,143.59,3.34973472]
[1768496102315,16.04973472,143.65,143.59,3.86465488]
[1768496102614,16.04973472,143.65,143.6,6.96361143]
[1768496102615,0.5179911,143.64,143.6,6.96361143]
[1768496102994,7.48006321,143.64,143.6,6.96361143]
[1768496103295,0.5179911,143.63,143.59,28.23941765]
[1768496103493,0.5179911,143.65,143.61,3.86465488]
[1768496103702,0.5179911,143.64,143.61,3.34973472]
[1768496104011,0.5179911,143.64,143.6,3.86465488]
[1768496104307,0.5179911,143.64,143.59,7.47899974]
[1768496104603,0.5179911,143.64,143.59,10.82873446]
[1768496105389,0.5179911,143.64,143.6,3.34973472]
[1768496106415,12.7,143.65,143.61,3.86465488]
[1768496106595,13.2179911,143.65,143.62,0.51492016]
[1768496106792,13.2179911,143.65,143.61,3.86465488]
[1768496106997,0.5179911,143.64,143.61,10.31286838]
[1768496107302,0.5179911,143.64,143.61,6.96313366]
[1768496108720,0.5179911,143.64,143.61,10.31286838]
[1768496108903,0.5179911,143.64,143.61,7.47805382]
[1768496109104,0.5179911,143.64,143.61,6.96313366]
[1768496109308,0.5179911,143.63,143.6,0.51492016]
[1768496109695,13.2179911,143.65,143.61,0.51492016]
[1768496110020,0.5179911,143.64,143.6,28.23779103]
[1768496110589,0.5179911,143.65,143.62,3.86465488]
[1768496110788,0.5179911,143.66,143.63,3.86465488]
[1768496110993,0.5179911,143.67,143.63,7.47683346]
[1768496111216,0.5179911,143.67,143.63,10.82656818]
[1768496112004,0.5179911,143.66,143.63,7.47683346]
[1768496112513,0.5179911,143.66,143.62,6.96251714]
[1768496112822,0.5179911,143.66,143.62,10.31225186]
[1768496114722,0.5179911,143.65,143.61,10.82781543]
[1768496115227,0.5179911,143.67,143.64,0.51492016]
[1768496116028,0.5179911,143.67,143.63,3.86465488]
[1768496116520,0.5179911,143.67,143.63,10.82666372]
[1768496117413,7.47848611,143.67,143.63,10.82666372]
[1768496120141,7.47848611,143.67,143.63,7.476929]
[1768496120435,7.47848611,143.67,143.63,10.82666372]
[1768496122111,0.5179911,143.67,143.63,10.82666372]
[1768496122306,0.54493712,143.69,143.66,3.88915922]
[1768496122713,0.54493712,143.69,143.67,3.34973472]
[1768496123810,0.54493712,143.69,143.66,3.88915922]
[1768496124217,0.54493712,143.69,143.66,3.34973472]
[1768496124645,20.19282386,143.71,143.67,3.9036978]
[1768496124840,0.53428625,143.7,143.67,3.9036978]
[1768496125531,13.23428625,143.71,143.68,0.55396308]
[1768496125833,0.53428625,143.71,143.68,3.9036978]
[1768496126742,7.05763227,143.73,143.68,10.86334615]
[1768496126743,0.53428625,143.72,143.68,10.86334615]
[1768496127033,0.53428625,143.72,143.69,3.34973472]
[1768496128326,0.53428625,143.72,143.68,6.95964835]
[1768496128524,0.53428625,143.72,143.68,10.30938307]
[1768496128723,0.53428625,143.72,143.68,10.86334615]
[1768496129035,0.53428625,143.72,143.68,10.30938307]
[1768496129741,0.53428625,143.72,143.68,10.86334615]
[1768496132045,0.53428625,143.71,143.68,10.86334615]
[1768496132531,0.53428625,143.71,143.68,6.95964835]
[1768496132731,0.53428625,143.7,143.65,0.55396308]
[1768496132930,0.53428625,143.7,143.66,0.55396308]
[1768496133636,0.53428625,143.7,143.66,3.9036978]
[1768496133830,0.53428625,143.7,143.66,0.55396308]
[1768496134033,0.53428625,143.69,143.66,0.55396308]
[1768496134552,12.7,143.7,143.69,0.55396308]
[1768496134842,20.29199864,143.73,143.69,3.8736978]
[1768496135143,0.53428625,143.72,143.69,3.8736978]
[1768496136156,0.53428625,143.72,143.69,3.34973472]
[1768496136460,0.53428625,143.72,143.67,10.31005931]
[1768496136768,7.49248674,143.72,143.68,0.55396308]
[1768496136943,0.53428625,143.71,143.67,0.55396308]
[1768496137732,3.88402097,143.71,143.67,0.55396308]
[1768496138167,0.53428625,143.71,143.67,0.55396308]
[1768496138652,6.95894224,143.7,143.66,3.9036978]
[1768496138862,6.95894224,143.7,143.66,10.8644341]
[1768496138863,7.49322849,143.7,143.66,10.8644341]
[1768496139863,7.49322849,143.7,143.67,0.55396308]
[1768496140755,20.19322849,143.7,143.66,0.55396308]
[1768496141758,20.19322849,143.7,143.66,7.51480737]
[1768496142536,20.19322849,143.7,143.66,0.55396308]
[1768496142866,0.53428625,143.68,143.64,0.55396308]
[1768496143036,0.53428625,143.68,143.64,10.86533777]
[1768496143438,0.53428625,143.68,143.65,0.55396308]
[1768496143951,0.47428626,143.68,143.65,7.51525747]
[1768496144462,19.65907963,143.7,143.66,7.51473979]
[1768496144760,12.7,143.7,143.66,7.51473979]
[1768496144966,0.1,143.73,143.69,0.55396308]
[1768496145162,7.05764213,143.73,143.69,3.9036978]
[1768496146067,7.59192838,143.73,143.69,3.9036978]
[1768496146246,0.53428625,143.72,143.69,3.9036978]
[1768496146567,0.53428625,143.72,143.69,0.55396308]
[1768496147286,0.53428625,143.71,143.67,0.55396308]
[1768496147577,0.53428625,143.71,143.67,3.9036978]
[1768496148069,0.53428625,143.71,143.67,3.34973472]
[1768496148243,0.53428625,143.7,143.65,3.9036978]
[1768496148563,0.53428625,143.69,143.65,0.55396308]
[1768496149156,0.53428625,143.69,143.65,10.86478235]
[1768496150770,7.49386483,143.69,143.65,7.51504763]
[1768496150950,0.54525912,143.68,143.64,10.84126331]
[1768496151144,0.54525912,143.68,143.64,0.52989376]
[1768496151655,7.50565447,143.67,143.64,0.52989376]
[1768496151854,6.90039536,143.67,143.64,0.52989376]
[1768496152265,7.50519423,143.68,143.64,7.49165856]
[1768496152446,19.65961875,143.69,143.66,0.52989376]
[1768496152649,19.65961875,143.69,143.65,3.34973472]
[1768496152650,20.20487787,143.69,143.65,3.34973472]
[1768496152965,20.20487787,143.69,143.65,3.87962848]
[1768496153664,20.20487787,143.69,143.65,7.49124393]
[1768496153870,20.20487787,143.69,143.65,10.84097865]
[1768496154774,0.54525912,143.68,143.65,0.52989376]
[1768496155274,0.54525912,143.67,143.62,0.52989376]
[1768496155570,7.50613897,143.66,143.62,3.87962848]
[1768496156150,7.50613897,143.66,143.62,10.84237086]
[1768496156664,7.50613897,143.66,143.62,7.49263614]
[1768496156877,0.54525912,143.66,143.62,10.84237086]
[1768496157054,0.54525912,143.66,143.63,3.34973472]
[1768496157970,0.54525912,143.66,143.62,10.84237086]
[1768496159576,0.54525912,143.66,143.62,12.72444708]
[1768496160279,0.54525912,143.66,143.63,0.52989376]
[1768496160461,12.7,143.69,143.66,0.52989376]
[1768496160462,0.54525912,143.69,143.66,0.52989376]
[1768496161184,0.54525912,143.69,143.65,5.7617047]
[1768496161483,7.50489656,143.69,143.65,0.52989376]
[1768496164052,7.44489657,143.69,143.65,0.52989376]
[1768496165053,5.23181094,143.69,143.64,0.52989376]
[1768496165686,5.23181094,143.69,143.65,0.52989376]
[1768496165891,29.58857291,143.7,143.65,0.52989376]
[1768496166185,0.54525912,143.69,143.65,7.49125338]
[1768496166497,7.50420136,143.7,143.66,0.52989376]
[1768496168703,0.54525912,143.69,143.66,0.52989376]
[1768496169205,7.50420136,143.7,143.67,0.52989376]
[1768496169492,7.50420136,143.7,143.66,0.52989376]
[1768496169666,7.50420136,143.7,143.66,7.49071904]
[1768496170786,7.44420137,143.7,143.67,0.52989376]
[1768496171089,7.38420138,143.7,143.67,0.52989376]
[1768496174291,12.61601232,143.7,143.67,0.52989376]
[1768496174976,7.38420138,143.7,143.67,0.52989376]
[1768496175177,12.61601232,143.7,143.67,0.52989376]
[1768496175378,12.61601232,143.7,143.66,0.52989376]
[1768496175566,7.38420138,143.7,143.66,0.52989376]
[1768496175766,12.61601232,143.7,143.66,0.52989376]
[1768496176993,0.54525912,143.7,143.67,0.52989376]
[1768496177492,12.73623625,143.7,143.67,0.52989376]
[1768496177695,12.67623626,143.7,143.67,0.52989376]
[1768496177993,12.61623627,143.7,143.67,0.52989376]
[1768496178396,7.38442533,143.7,143.67,0.52989376]
[1768496178600,12.61623627,143.7,143.67,0.52989376]
[1768496179073,7.38442533,143.7,143.67,0.52989376]
[1768496181600,7.32442534,143.7,143.67,0.52989376]
[1768496181771,12.55623628,143.7,143.67,0.52989376]
[1768496183793,7.32442534,143.7,143.67,0.52989376]
[1768496183990,12.55623628,143.7,143.67,0.52989376]
[1768496184617,0.54223354,143.69,143.66,0.55761917]
[1768496184909,5.71404449,143.69,143.66,0.55761917]
[1768496185201,5.23181094,143.68,143.66,0.55761917]
[1768496185392,5.17181095,143.68,143.66,0.55761917]
[1768496185774,5.23181094,143.67,143.65,0.55761917]
[1768496185980,5.23181094,143.66,143.63,15.56196828]
[1768496186181,5.23181094,143.66,143.63,6.96196828]
[1768496186709,0.54223354,143.67,143.64,6.96181226]
[1768496187080,5.23181094,143.66,143.64,6.96181226]
[1768496187375,5.23181094,143.66,143.63,6.96213455]
[1768496187598,5.77404448,143.66,143.63,6.96213455]
[1768496188017,5.77404448,143.66,143.63,7.46723622]
[1768496188214,5.23181094,143.64,143.62,17.40660686]
[1768496188728,5.17181095,143.64,143.62,17.40660686]
[1768496189588,0.54223354,143.66,143.62,17.40660686]
[1768496189809,5.23181094,143.64,143.62,17.40660686]
[1768496190006,1e-08,143.64,143.62,17.40660686]
[1768496190319,5.23181094,143.65,143.62,17.40660686]
[1768496190486,5.23181094,143.65,143.62,24.3694254]
[1768496191410,5.17181094,143.65,143.62,24.3694254]
[1768496191608,5.71404448,143.65,143.62,24.3694254]
[1768496192708,5.71404448,143.65,143.62,6.96281854]
[1768496193602,5.17181094,143.65,143.62,6.96281854]
[1768496194624,5.77404448,143.64,143.61,6.96314468]
[1768496194984,7.50332383,143.66,143.61,6.96314468]
[1768496195224,5.77404448,143.62,143.59,10.56426607]
[1768496195391,5.77404448,143.62,143.58,6.96439115]
[1768496195392,5.17181093,143.61,143.58,6.96439115]
[1768496195585,5.11181093,143.61,143.58,6.96439115]
[1768496195994,5.23181094,143.6,143.56,3.6043326]
[1768496196823,5.77404448,143.61,143.56,10.56986742]
[1768496197120,5.77404448,143.61,143.56,27.98418895]
[1768496200114,5.71404448,143.61,143.57,0.06741787]
[1768496200819,0.54223354,143.66,143.55,11.92266945]
[1768496201023,5.23181094,143.61,143.55,11.92266945]
[1768496201209,5.23181094,143.61,143.55,20.52266945]
[1768496201719,5.77404448,143.61,143.55,20.52266945]
[1768496202513,5.77404448,143.61,143.56,24.37985635]
[1768496202825,5.77404448,143.61,143.57,0.48381981]
[1768496204522,5.23181094,143.61,143.58,7.44960552]
[1768496205706,5.77404448,143.62,143.58,7.44960552]
[1768496211129,0.5830143,143.61,143.58,7.44960552]
[1768496214637,0.5830143,143.62,143.59,0.49684143]
[1768496214938,5.81482524,143.62,143.59,0.49684143]
[1768496215434,0.5830143,143.62,143.59,0.49684143]
[1768496215621,0.5830143,143.62,143.59,7.46095508]
[1768496216724,0.5830143,143.63,143.6,0.4989726]
[1768496216923,34.79229002,143.71,143.6,0.4989726]
[1768496217131,0.5830143,143.69,143.64,0.50001986]
[1768496217436,0.5830143,143.7,143.65,0.50001986]
[1768496217626,0.5830143,143.7,143.67,6.96039535]
[1768496218634,0.5830143,143.7,143.67,7.46145044]
[1768496219940,7.54162546,143.71,143.67,7.46145044]
[1768496220239,0.5830143,143.7,143.67,7.46145044]
[1768496221045,0.5830143,143.7,143.67,6.96039535]
[1768496221622,0.5830143,143.7,143.66,7.46384867]
[1768496222050,0.5830143,143.7,143.67,6.96021954]
[1768496222926,3.92937751,143.71,143.67,7.46529801]
[1768496223127,6.95830478,143.72,143.71,3.0457337]
[1768496224121,10.30466799,143.72,143.68,0.53546561]
[1768496225346,0.5830143,143.71,143.68,0.53546561]
[1768496226254,0.5830143,143.71,143.68,7.49528637]
[1768496228230,0.5830143,143.71,143.68,0.53546561]
[1768496229040,0.5830143,143.68,143.65,16.09674912]
[1768496229248,0.5830143,143.68,143.65,0.53546561]
[1768496229632,0.5830143,143.68,143.65,7.49681769]
[1768496230552,7.54241972,143.7,143.66,0.53546561]
[1768496230734,0.5830143,143.69,143.66,0.53546561]
[1768496231144,0.5830143,143.69,143.65,7.49681769]
[1768496232153,3.92937751,143.69,143.65,7.49681769]
[1768496232449,0.5830143,143.68,143.65,7.49681769]
[1768496232641,0.5230143,143.68,143.65,7.49681769]
[1768496235148,7.54257408,143.69,143.66,0.53546561]
[1768496235343,10.88893729,143.69,143.66,0.53546561]
[1768496236155,10.88893729,143.69,143.65,0.53546561]
[1768496236156,7.54296513,143.68,143.65,0.53546561]
[1768496238556,7.54296513,143.68,143.63,19.83759035]
[1768496238557,3.92937751,143.67,143.63,19.83759035]
[1768496238859,0.5830143,143.66,143.63,19.83759035]
[1768496239241,0.52301429,143.66,143.63,19.83759035]
[1768496239636,3.8693775,143.66,143.63,19.83759035]
[1768496240265,3.34636321,143.65,143.59,6.96400753]
[1768496240558,6.96233377,143.63,143.59,0.53546561]
[1768496240760,3.34636321,143.61,143.57,0.58280488]
[1768496241138,3.34636321,143.6,143.56,0.58280488]
[1768496241355,3.34636321,143.59,143.56,0.58280488]
[1768496242040,3.89899479,143.59,143.56,0.58280488]
[1768496242249,3.89899479,143.59,143.56,7.54850275]
[1768496242657,0.55263158,143.59,143.56,7.54850275]
[1768496242853,6.96373383,143.61,143.57,0.58280488]
[1768496242854,0.55263158,143.6,143.57,0.58280488]
[1768496243043,3.89899479,143.6,143.57,0.58280488]
[1768496244140,0.55263158,143.59,143.56,7.54850275]
[1768496244669,3.94505032,143.61,143.58,0.60458137]
[1768496244965,0.59868711,143.62,143.58,0.60458137]
[1768496245569,0.59868711,143.61,143.58,0.60458137]
[1768496246369,0.59868711,143.61,143.58,7.56916222]
[1768496246370,0.47868705,143.61,143.58,7.56916222]
[1768496247055,3.34636321,143.62,143.58,7.56916222]
[1768496248172,10.30923191,143.62,143.58,7.56916222]
[1768496248344,10.90791902,143.62,143.58,7.56916222]
[1768496249168,0.59868711,143.59,143.57,6.96503481]
[1768496249477,3.34636321,143.6,143.57,6.96503481]
[1768496249673,3.34636321,143.6,143.57,7.56961618]
[1768496250765,24.36721518,143.64,143.57,7.56961618]
[1768496250970,27.71357839,143.64,143.56,6.96552713]
[1768496251158,3.34636321,143.59,143.55,7.57066089]
[1768496251352,3.84363244,143.59,143.55,7.57066089]
[1768496251558,3.34636321,143.58,143.55,7.57066089]
[1768496252057,0.49726923,143.57,143.54,0.2]
[1768496252262,12.18,143.61,143.54,0.2]
[1768496252263,3.84546176,143.58,143.55,0.60458137]
[1768496253873,3.34636321,143.57,143.54,7.77099477]
[1768496254070,3.34636321,143.57,143.55,6.9658895]
[1768496254579,3.34636321,143.57,143.54,7.77110662]
[1768496255483,3.34636321,143.57,143.55,6.9660739]
[1768496255884,3.34636321,143.57,143.55,7.57065527]
[1768496256900,104.0,143.68,143.56,3.95094458]
[1768496257185,12.16,143.69,143.6,3.95094458]
[1768496257395,3.34636321,143.65,143.61,0.60458137]
[1768496257759,12.16,143.69,143.62,0.60458137]
[1768496257959,3.34636321,143.66,143.62,0.60458137]
[1768496258590,3.34636321,143.66,143.63,6.96233377]
[1768496259787,6.96007719,143.68,143.63,0.60458137]
[1768496259970,3.34636321,143.66,143.63,0.60458137]
[1768496261993,6.96057897,143.67,143.63,0.60458137]
[1768496262170,10.30694218,143.67,143.63,0.60458137]
[1768496262372,6.96002556,143.68,143.63,7.56671808]
[1768496262572,3.34636321,143.67,143.63,7.56671808]
[1768496262867,3.34636321,143.67,143.64,0.60458137]